Cogmind - Beta 15 @@@ ROGUE MODE // 2025.07.12 @ 18:56:13 Player: Cracklepappy Result: Destroyed by D-53 Grenadier with Mini Grenade Launcher Performance ------------- Evolutions (0) 0 Regions Visited (2) 400 Robots Destroyed (42) 210 Value Destroyed (890) 890 Prototype IDs (2) 40 Alien Tech Used (0) 0 Bonus (0) 0 TOTAL SCORE: 1540 Bonus ------- None Cogmind --------- Core Integrity 0/250 Matter 300/300 Energy 28/100 System Corruption 0% Temperature Warm (121) Movement Core (400) Ox7 Location -10/Mines Parts ------- > --- POWER (1) -------- (None) > --- PROPULSION (2) --- (None) > --- UTILITY (2) ------ Improved Heat Sink Large Storage Unit > --- WEAPON (2) ------- Spread Laser > --- INVENTORY (15) --- Light Treads Light Treads Wheel Improved Heat Sink Cargo Storage Unit Large Matter Pod (150) Seismic Detector Spread Laser Spread Laser Spread Laser Spread Laser Assault Rifle Mini Grenade Launcher Mining Laser Peak State ------------ > --- POWER ------------ Light Nuclear Core > --- PROPULSION ------- Light Treads Light Treads > --- UTILITY ---------- Improved Heat Sink Large Storage Unit > --- WEAPON ----------- Spread Laser Spread Laser > --- INVENTORY -------- Light Treads Light Treads Wheel Cargo Storage Unit Large Matter Pod Seismic Detector Spread Laser Spread Laser Spread Laser Spread Laser Spread Laser Assault Rifle Mini Grenade Launcher Mining Laser [Rating: 15] Favorites ----------- Power Ion Engine Engine Ion Engine Power Core Light Nuclear Core Propulsion Light Treads Treads Light Treads Utility Large Storage Unit Device Improved Heat Sink Storage Large Storage Unit Weapon Spread Laser Energy Gun Spread Laser Ballistic Gun Assault Rifle Build | -11 -10 -10 ------- Run | Yrd Mat Min Slots Evolved . | . . . Power . | . . . Propulsion . | . . . Utility . | . . . Weapon . | . . . Parts Attached 20 | 7 13 . Power 3 | 1 2 . Engine 2 | 1 1 . Core 1 | . 1 . Reactor . | . . . Propulsion 4 | 2 2 . Treads 4 | 2 2 . Leg . | . . . Wheel . | . . . Hover . | . . . Flight . | . . . Utility 6 | 2 4 . Device 3 | 1 2 . Storage 3 | 1 2 . Processor . | . . . Hackware . | . . . Protection . | . . . Artifact . | . . . Weapon 7 | 2 5 . Energy Gun 5 | . 5 . Energy Cannon . | . . . Ballistic Gun 2 | 2 . . Ballistic Cannon . | . . . Launcher . | . . . Special Weapon . | . . . Impact Weapon . | . . . Slashing Weapon . | . . . Piercing Weapon . | . . . Special Melee Weapon . | . . . Unidentified Prototypes . | . . . Parts Lost 5 | . 1 4 Power 2 | . 1 1 Propulsion 2 | . . 2 Utility . | . . . Weapon 1 | . . 1 Highest Loss Streak 4 | . 1 4 To Critical Strikes . | . . . Average Backups 12 | 3 12 14 Power . | . . . Propulsion 2 | . 2 3 Utility 3 | . 3 4 Weapon 6 | . 7 7 Tool/Special . | . . . Unused Backups 22 | 4 7 11 Power 1 | 1 . . Propulsion 7 | 2 3 2 Utility 5 | 1 1 3 Weapon 9 | . 3 6 Tool/Special . | . . . Average Slot Usage (%) 99 | . 99 99 Engine 6 | . 8 . Core 7 | . 5 13 Treads 28 | . 28 28 Device 14 | . 14 14 Storage 14 | . 14 14 Energy Gun 24 | . 23 28 Ballistic Gun 3 | . 4 . Peak Build Rating 15 | 7 15 15 Average Rating 12 | 6 12 14 On Entrance 7 | . 7 15 Naked Turns . | . . . Heaviest Build 32 | 14 32 32 Greatest Support 40 | 40 40 40 Greatest Overweight (x) 1 | . 1 . Average Overweight (x) . | . . . Largest Inventory Capacity 15 | 8 15 15 Average Capacity 13 | 7 14 15 Most Carried 15 | 8 15 15 Average Carried 12 | 3 13 15 Final Capacity 15 | 8 15 15 Final Carried 15 | 8 15 15 Class Distribution -------------------- 100% | Mutant Dominant Class ---------------- Mutant | -10/Materials Mutant | -10/Mines Resources | -11 -10 -10 ----------- Run | Yrd Mat Min Matter Collected 747 | 346 401 . Remotely . | . . . Salvage Created 1298 | 198 1063 37 Parts 82 | 24 57 1 Haulers Intercepted 2 | . 2 . Recyclers Shooed 2 | . 2 . Parts Field Recycled . | . . . Retrieved Matter . | . . . Parts Self-Destructed . | . . . Prevented . | . . . Kills | -11 -10 -10 ------- Run | Yrd Mat Min Combat Hostiles Destroyed 22 | . 19 3 Guns 22 | . 19 3 Classes Destroyed 9 | 3 4 2 Worker 6 | 2 4 . Tunneler 5 | 5 . . Hauler 2 | . 2 . Recycler 5 | 1 4 . Operator 1 | . 1 . Watcher 3 | . 3 . Grunt 19 | . 19 . Demolisher 1 | . . 1 Assembled 2 | . . 2 Best Kill Streak 4 | 3 4 2 Combat Bots Only 4 | . 4 2 Max Kills in Single Turn 2 | 1 2 1 Gunslinging 1 | . 1 . Exploded . | . . . Melee . | . . . Uniques/NPCs Destroyed . | . . . Combat | -11 -10 -10 -------- Run | Yrd Mat Min Hostile Shots Fired 74 | . 60 14 Missed 15 | . 13 2 Hits 59 | . 47 12 Melee 1 | . . 1 Projectile 58 | . 47 11 AOE 12 | . . 12 Damage Taken 1134 | . 637 497 Core 254 | . 84 170 Absorbed by Shields . | . . . Regen/Repaired (Parts) 135 | . 135 . Core Remaining (%) 100 | 100 . . Volleys Fired 99 | 19 70 10 Largest 2 | 2 2 2 Hottest 130 | 40 130 130 Shots Fired 192 | 38 135 19 Gun 192 | 38 135 19 Cannon . | . . . Launcher . | . . . Special . | . . . Kinetic 57 | 38 19 . Thermal 133 | . 114 19 Explosive . | . . . Electromagnetic 2 | . 2 . Robot Hit Streak 8 | 8 8 5 Robot Miss Streak 11 | 2 11 4 Penetration Max . | . . . Secondary Targets 3 | . 2 1 Max Gunslinging Chain 1 | . 1 1 Shots Hit Robots 156 | 21 116 19 Core Hits 166 | 13 127 26 Critical Kills . | . . . Critical Parts Destroyed . | . . . Critical Strikes . | . . . Melee Attacks . | . . . Impact . | . . . Slashing . | . . . Piercing . | . . . Sneak Attacks . | . . . Combat Hostiles . | . . . Follow-up Attacks . | . . . Damage Inflicted 1938 | 214 1482 242 Guns 1903 | 214 1447 242 Cannons . | . . . Explosions 22 | . 22 . Melee . | . . . Ramming 13 | . 13 . Kinetic 388 | 214 174 . Thermal 1507 | . 1265 242 Explosive . | . . . Electromagnetic 30 | . 30 . Impact . | . . . Slashing . | . . . Piercing . | . . . Highest Corruption . | . . . Average Corruption . | . . . Corruption Purged . | . . . Corruption Blocked . | . . . Overload Shots . | . . . Overflow Damage . | . . . Projectiles . | . . . Explosions . | . . . Melee . | . . . Knockbacks . | . . . Impact . | . . . Kinetic . | . . . Secondary . | . . . Self-Inflicted Damage 33 | . 33 . Shots 1 | . 1 . Rammed 3 | . 3 . Targets Rammed 4 | . 4 . Kicked . | . . . Crushed 1 | . 1 . Highest Temperature 318 | . 318 128 Average Temperature 84 | . 85 71 Received Heat Transfer 336 | . 336 . Effects 1 | . 1 . Interference 1 | . 1 . Siege Activations . | . . . Martial Activations . | . . . Shielding Activations . | . . . Robots Disrupted . | . . . Combat Hostiles . | . . . Robots Corrupted . | . . . Combat Hostiles . | . . . Parts Fried . | . . . Impact Corruptions . | . . . Robots Melted . | . . . Combat Hostiles . | . . . Parts Melted . | . . . Heat Transferred 1905 | . 1595 310 Parts Sabotaged . | . . . Parts Stolen . | . . . Parts Stripped . | . . . Power Chain Reactions 1 | . 1 . Alert | -11 -10 -10 ------- Run | Yrd Mat Min Maximum Alert Level . | . . . Low Security (%) 100 | 100 100 100 Level 1 . | . . . Level 2 . | . . . Level 3 . | . . . Level 4 . | . . . Level 5 . | . . . High Security . | . . . Max Security . | . . . Peak Influence 185 | 10 185 69 Initial 69 | . . 69 Average 41 | . 57 9 Influence Increases 704 | 40 634 30 Destroy 0b10 Robot/C 400 | . 380 20 Destroy 0b10 Robot/NC 110 | 40 70 . Destroy Leader 120 | . 110 10 Successful Hack 8 | . 8 . Select Force Hacks 30 | . 30 . Destroy Structure 6 | . 6 . Lose Combat Pursuer 30 | . 30 . Influence Decreases 704 | 40 456 208 Entered New Map 109 | . . 109 Time Decay 555 | 40 446 69 Lost Part 40 | . 10 30 Squads Dispatched 7 | . 7 . Investigation 3 | . 3 . Extermination . | . . . Reinforcement 4 | . 4 . Assault . | . . . Garrison . | . . . Intercept . | . . . Searches Triggered . | . . . Construction Impeded . | . . . Haulers Reinforced . | . . . Active Scanning Responses . | . . . Cargo Convoy Interrupts . | . . . Stealth | -11 -10 -10 --------- Run | Yrd Mat Min Distress Signals 2 | . 1 1 Communications Jammed . | . . . Distress Signals . | . . . Times Spotted 37 | . 33 4 Peak Tracking Total 4 | . 4 2 Tactical Retreats 2 | . 2 . Traps | -11 -10 -10 ------- Run | Yrd Mat Min Traps Triggered 3 | . 3 . Indirectly . | . . . Trap Hack Attempts . | . . . Triggered . | . . . Disarmed . | . . . Reprogrammed . | . . . Reused . | . . . Traps Extracted . | . . . Installed . | . . . Triggered . | . . . Machines | -11 -10 -10 ---------- Run | Yrd Mat Min Machines Disabled . | . . . Max in Single Turn . | . . . Machines Repaired . | . . . Machines Dismantled . | . . . Machines Sabotaged . | . . . Overloaded Fab Kills . | . . . Hacking | -11 -10 -10 --------- Run | Yrd Mat Min Machines Accessed 6 | . 6 . Terminals 4 | . 4 . Fabricators . | . . . Repair Stations 1 | . 1 . Recycling Units 1 | . 1 . Scanalyzers . | . . . Garrison Access . | . . . Total Hacks 12 | . 12 . Successful 9 | . 9 . Failed 3 | . 3 . Catastrophic 1 | . 1 . Database Lockouts . | . . . Manual 8 | . 8 . Terminals 9 | . 9 . Fabricators . | . . . Repair Stations 2 | . 2 . Recycling Units 1 | . 1 . Scanalyzers . | . . . Garrison Access . | . . . Terminal Hacks 3 | . 3 . Robot Schematic 1 | . 1 . Prototype ID Bank 1 | . 1 . Locate Traps 1 | . 1 . Fabricator Hacks . | . . . Repair Station Hacks 2 | . 2 . Scan Component 1 | . 1 . Repair 1 | . 1 . Recycling Unit Hacks . | . . . Scanalyzer . | . . . Garrison Access Hacks . | . . . Unauthorized Hacks 4 | . 4 . Terminals 3 | . 3 . Skim 3 | . 3 . Fabricators . | . . . Repair Stations . | . . . Recycling Units 1 | . 1 . Tunnel 1 | . 1 . Scanalyzers . | . . . Garrison Access . | . . . Data Cores Recovered . | . . . Used . | . . . Hacking Detections 4 | . 4 . Full Trace Events . | . . . Feedback Events . | . . . Feedback Blocked . | . . . Robot Schematics Acquired 1 | . 1 . Robots Built . | . . . Authchips . | . . . Time . | . . . Total Robot Build Rating . | . . . Part Schematics Acquired . | . . . Parts Built . | . . . Authchips . | . . . Time . | . . . Total Part Build Rating . | . . . Parts Repaired 1 | . 1 . Time 13 | . 13 . Parts Recycled . | . . . Recycled Matter . | . . . Retrieved Matter . | . . . Retrieved Components . | . . . Parts Scanalyzed . | . . . Part Schematics Acquired . | . . . Parts Damaged . | . . . Bothacking | -11 -10 -10 ------------ Run | Yrd Mat Min Used RIF Installer . | . . . Robots Hacked . | . . . Non-combat . | . . . Combat . | . . . Robot Hacks Applied . | . . . Relay Couplers Released . | . . . Fabnet Peak Effective % . | . . . Robots Rewired . | . . . Allies Hacked . | . . . Hacks Repelled . | . . . Allies | -11 -10 -10 -------- Run | Yrd Mat Min Total Allies . | . . . Largest Group . | . . . Highest-Rated Group . | . . . Highest-Rated Ally . | . . . Total Orders . | . . . Ally Attacks . | . . . Total Damage . | . . . Kills . | . . . Allies Corrupted . | . . . Allies Melted . | . . . Intel | -11 -10 -10 ------- Run | Yrd Mat Min Active Infowar (turns) 703 | 250 453 . Seismic 703 | 250 453 . Robot Analysis Total . | . . . Derelict Logs Recovered . | . . . Drone Launches . | . . . Drone Recoveries . | . . . Exploration | -11 -10 -10 ------------- Run | Yrd Mat Min Turns Passed 2973 | 327 2027 619 Spaces Moved 1314 | 160 1013 141 Core 3 | 3 . . Treads 1311 | 157 1013 141 Legs . | . . . Wheels . | . . . Hover . | . . . Flight . | . . . Fastest Speed 50 | 50 160 160 Average Speed 159 | 157 160 160 Slowest Speed 240 | 160 240 160 Overloaded Moves . | . . . Propulsion Burnouts . | . . . Robots Hopped . | . . . Potential Cave-ins . | . . . Cave-ins Triggered . | . . . Exploration Rate (%) 39 | 6 99 12 Regions Visited 2 Branch Regions 1 Pre-discovered Areas 1 | . 1 . Known Exits Taken . | . . . Unknown Exits Taken 2 | 1 1 . Scrap Searched . | . . . Spaces Dug . | . . . Terrain Destroyed 5 | . 5 . Melee . | . . . Projectile . | . . . AOE 5 | . 5 . Terrain Rammed . | . . . Walls Destroyed . | . . . Machines Disabled . | . . . Actions | -11 -10 -10 --------- Run | Yrd Mat Min Total 2001 | 201 1284 516 Wait 505 | . 140 365 Move 1312 | 159 1012 141 Hop . | . . . Pick Up 32 | 12 20 . Fast Attach 12 | 7 5 . Attach 1 | . 1 . Detach . | . . . Swap 15 | . 15 . Drop 21 | 4 17 . Fire 99 | 19 70 10 Melee . | . . . Ram . | . . . Kick . | . . . Crush 4 | . 4 . Escape Stasis . | . . . Rewire . | . . . Trap . | . . . Miscellaneous . | . . . Route ------- -11/Scrapyard -10/Materials (discovered 5 exits: [*Mat x3] / [*Min] / [*Sub]) -10/Mines History --------- Turn | Location | Event 2 | -11/Scrapyard | Met Revision 17 9 | -11/Scrapyard | Discovered new exit (range 15) 328 | -11/Scrapyard | Entered Materials 333 | -10/Materials | Build established: Mutant 505 | -10/Materials | Discovered new exit (range 13) 1163 | -10/Materials | Discovered new exit (range 7) 1380 | -10/Materials | Repaired Lgt. Treads 1680 | -10/Materials | Discovered new exit (range 12) 2064 | -10/Materials | Discovered new exit (range 8) 2096 | -10/Materials | Discovered new exit (range 10) 2355 | -10/Materials | Entered Mines 2436 | -10/Mines | Assembled infested the area 2964 | -10/Mines | Core integrity fell below 50% 2969 | -10/Mines | Core integrity fell below 20% 2974 | -10/Mines | Destroyed by D-53 Grenadier with Mini Grenade Launcher Last Messages --------------- LOCATION=UNKNOWN GOAL=ESCAPE 02436_ ALERT: Infestation in the mines, dispatching Demolisher response squad. 02729_ as-03430 destroyed. 02735_ Destroyed Asb. Hover Unit. 02735_ as-59167 destroyed. 02963_ Lgt. Nuclear Core destroyed. 02964_ Destroyed Shock Absorption System. 02964_ D-53 Grenadier destroyed. 02964_ Switching to secondary target: D-53 Grenadier. 02965_ The unstable cave ceiling collapses. 02968_ U-05 Engineer lays Concrete. 02970_ The unstable cave ceiling collapses. 02970_ Spread Laser destroyed. 02970_ Lgt. Treads destroyed. 02971_ The unstable cave ceiling collapses. 02972_ U-05 Engineer destroyed. 02973_ The unstable cave ceiling collapses. 02974_ Lgt. Treads destroyed. Map ----- +----------------------------------------------------+ | ??????????????????????????????????????????????? | | ??????????????????????????????????????????????? | | ??????????????????????????????????????????????? | | ??????????????????????????????????????????????? | | ??????????????????????????????????????????????? | | ??????????????????????????????????????????????? | | ??????????????????????????????????????????????? | | ??????????????????????????????????????????????? | | ??????????????????????????????????????????????? | | ??????????????????????????????????????????????? | | ??????????????????=???????????????????????????? | | ?????????????????# ??????????????????????????? | | ????????????????## ??????????????????????????? | | ???????????????## ????????????????????????? | | ??????????????## ????????????????????????? | | ??????????????# ????????????????????????? | | ??????????????? ????????????????????????? | | ???????????????? ????????????????????????? | | ?????????????????#[% ????????????????????????? | | ??????????????????#=% ????????????????????????? | | ?????????????????##%% ########????????????????? | | ????????????????##%%[ # ##???????????????? | | ????????????????#=[=%! #???????????????? | | ????????????????#% | # # ########????????? | | ???????????????## #????????? | | ????????????#### *% @ ####?????? | | ????????????# d ##### #?????? | | ???????????# ## #???# #?????? | | ???????????# ???## ##???##### #?????? | | ???????????# ??????## ##???????## #?????? | | ????????????????????## #####??????### ##????? | | ?????????????????????# ############ ##???? | | ?????????????????????# ###?? | | ?????????????????????############## #?? | | ??????????????????????????????????## #? | | ???????????????????????????????????## #? | | ????????????????????????????????????###### ##? | | ??????????????????????????????????????????###?? | | ??????????????????????????????????????????????? | | ??????????????????????????????????????????????? | | ??????????????????????????????????????????????? | | ??????????????????????????????????????????????? | | ??????????????????????????????????????????????? | | ??????????????????????????????????????????????? | | ??????????????????????????????????????????????? | | ??????????????????????????????????????????????? | | ??????????????????????????????????????????????? | | ??????????????????????????????????????????????? | | ??????????????????????????????????????????????? | | ??????????????????????????????????????????????? | +----------------------------------------------------+ Best States ------------- Heat Dissipation 39 Energy Generation 14 Energy Capacity 250 Matter Stores 300 Matter Capacity 300 Sight Range 16 Terrain Scan Density 10 Evasion (%) 40 Recoil Reduction 2 Item Schematics ----------------- None Robot Schematics ------------------ M-13 Machinist | -10/Materials | Hacked Fabricated ------------ Nothing Repaired ---------- Lgt. Treads | 3% | -10/Materials Alien Tech Used ----------------- None Achievements -------------- None Challenges ------------ None Game ------ Seed CoordinationGodShell Manual? 0 Play Time 00:14:52 Cumulative 1048.4 hours Start 2025.07.12 @ 18:25:04 End 2025.07.12 @ 18:56:13 Sessions 1 Manual Loads 0 Difficulty Rogue Special Mode None Game No. 526 Rogue 526 Adventurer 0 Explorer 0 Win Type - Total 23 Types 10/4/3/0/1/1/2/2/0/0 Lore% 89 Gallery% 89 Achievement% 83 Wizard Run 0 Options --------- Layout 0 ASCII 0 Keyboard 0 Movement Numpad Keybinds 0 Fullscreen 2 Font 24/Smallcaps Map View 76x50 Zoom Use 0% Tactical HUD 1 Map Filters NONE Filters SHIFT_HUE(315) Steam 1 RUN: a766484c-d8f9-4a46-92d2-48082a18e6a6